[Event "Late-Titled-Tuesday-Blitz-October-10-2023"]
[Site "Chess.com"]
[Date "2023.10.10"]
[Round "10"]
[White "tylityli"]
[Black "RIPOL"]
[Result "1/2-1/2"]
[WhiteElo "2343"]
[BlackElo "2428"]
[TimeControl "180+1"]
[EndTime "15:50:38 PDT"]
[Termination "Game drawn by repetition"]

1. d4 {[%clk 0:02:59.3]} 1... Nf6 {[%clk 0:02:59.7]} 2. c4 {[%clk 0:02:58.9]}
2... e6 {[%clk 0:02:59.5]} 3. Nc3 {[%clk 0:02:58.6]} 3... Bb4 {[%clk 0:02:58.7]}
4. e3 {[%clk 0:02:58.6]} 4... O-O {[%clk 0:02:57.7]} 5. Ne2 {[%clk 0:02:58.9]}
5... c6 {[%clk 0:02:56.1]} 6. a3 {[%clk 0:02:59.8]} 6... Ba5 {[%clk 0:02:55.5]}
7. b4 {[%clk 0:02:59.9]} 7... Bc7 {[%clk 0:02:55.1]} 8. c5 {[%clk 0:03:00.3]}
8... d5 {[%clk 0:02:31.3]} 9. Ng3 {[%clk 0:02:58.3]} 9... e5 {[%clk 0:02:25.7]}
10. Be2 {[%clk 0:02:56.7]} 10... Re8 {[%clk 0:02:18]} 11. O-O {[%clk 0:02:55.9]}
11... Nbd7 {[%clk 0:02:16.9]} 12. b5 {[%clk 0:02:52.4]} 12... Nf8 {[%clk
0:02:16.1]} 13. a4 {[%clk 0:02:45.2]} 13... Ng6 {[%clk 0:02:09.8]} 14. Nh5
{[%clk 0:02:37.3]} 14... Nxh5 {[%clk 0:02:04.5]} 15. Bxh5 {[%clk 0:02:36.9]}
15... exd4 {[%clk 0:01:59.3]} 16. exd4 {[%clk 0:02:34]} 16... Qh4 {[%clk
0:01:58.3]} 17. g3 {[%clk 0:02:30.1]} 17... Qh3 {[%clk 0:01:57]} 18. Qf3 {[%clk
0:02:06.1]} 18... Bf5 {[%clk 0:01:31.8]} 19. Bxg6 {[%clk 0:01:48]} 19... fxg6
{[%clk 0:01:24.4]} 20. Be3 {[%clk 0:01:47.1]} 20... Rf8 {[%clk 0:01:20.4]} 21.
Qg2 {[%clk 0:01:46.8]} 21... Qh5 {[%clk 0:01:18]} 22. Rfe1 {[%clk 0:01:43]}
22... Bd3 {[%clk 0:01:15.8]} 23. f4 {[%clk 0:01:37.4]} 23... Qf5 {[%clk
0:01:13.3]} 24. Bf2 {[%clk 0:01:33.8]} 24... Rfe8 {[%clk 0:01:11.1]} 25. Rxe8+
{[%clk 0:01:32]} 25... Rxe8 {[%clk 0:01:10.2]} 26. Re1 {[%clk 0:01:31.9]} 26...
Rxe1+ {[%clk 0:01:08.6]} 27. Bxe1 {[%clk 0:01:32.8]} 27... Ba5 {[%clk
0:01:06.3]} 28. Nxd5 {[%clk 0:01:16.2]} 28... cxd5 {[%clk 0:01:00.8]} 29. Bxa5
{[%clk 0:01:14.6]} 29... Bc4 {[%clk 0:00:55.5]} 30. h3 {[%clk 0:01:07.9]} 30...
Qd3 {[%clk 0:00:52.6]} 31. c6 {[%clk 0:01:01.3]} 31... Qxd4+ {[%clk 0:00:50.3]}
32. Kh2 {[%clk 0:00:56.2]} 32... bxc6 {[%clk 0:00:48.6]} 33. bxc6 {[%clk
0:00:55.7]} 33... Qc5 {[%clk 0:00:46.8]} 34. c7 {[%clk 0:00:50.4]} 34... Ba6
{[%clk 0:00:46.3]} 35. Qd2 {[%clk 0:00:47.5]} 35... Kf7 {[%clk 0:00:42]} 36. Kg2
{[%clk 0:00:44.5]} 36... Ke6 {[%clk 0:00:41.3]} 37. Qc3 {[%clk 0:00:43.5]} 37...
Qxc3 {[%clk 0:00:40]} 38. Bxc3 {[%clk 0:00:43]} 38... Kd7 {[%clk 0:00:39.1]} 39.
Be5 {[%clk 0:00:42.9]} 39... d4 {[%clk 0:00:36.4]} 40. Bxd4 {[%clk 0:00:41.2]}
40... Kxc7 {[%clk 0:00:35.7]} 41. Bxa7 {[%clk 0:00:41]} 41... Kc6 {[%clk
0:00:34.3]} 42. a5 {[%clk 0:00:40.1]} 42... Kd5 {[%clk 0:00:32.9]} 43. Kf3
{[%clk 0:00:37.8]} 43... Bf1 {[%clk 0:00:30.2]} 44. h4 {[%clk 0:00:37]} 44... h5
{[%clk 0:00:29.9]} 45. Ke3 {[%clk 0:00:36.8]} 45... Bh3 {[%clk 0:00:28.6]} 46.
Bd4 {[%clk 0:00:36.2]} 46... Bc8 {[%clk 0:00:26.2]} 47. Bxg7 {[%clk 0:00:35.9]}
47... Ba6 {[%clk 0:00:25.8]} 48. Bd4 {[%clk 0:00:35.9]} 48... Bb5 {[%clk
0:00:25.3]} 49. Bb6 {[%clk 0:00:35.7]} 49... Ba6 {[%clk 0:00:25.2]} 50. Kf3
{[%clk 0:00:35.9]} 50... Bc8 {[%clk 0:00:24.4]} 51. Bc7 {[%clk 0:00:35.5]} 51...
Kd4 {[%clk 0:00:23.8]} 52. Bb6+ {[%clk 0:00:35.2]} 52... Kd5 {[%clk 0:00:23.4]}
53. Bc7 {[%clk 0:00:35.3]} 53... Kd4 {[%clk 0:00:22.9]} 54. Bb6+ {[%clk
0:00:35.6]} 54... Kd5 {[%clk 0:00:22.8]} 1/2-1/2

[Event "Late-Titled-Tuesday-Blitz-October-10-2023"]
[Site "Chess.com"]
[Date "2023.10.10"]
[Round "10"]
[White "Hrant_ChessMood"]
[Black "greekplayer1"]
[Result "1-0"]
[WhiteElo "2951"]
[BlackElo "2715"]
[TimeControl "180+1"]
[EndTime "15:50:39 PDT"]
[Termination "Hrant_ChessMood won on time"]

1. d4 {[%clk 0:03:00.9]} 1... Nf6 {[%clk 0:02:55.8]} 2. c4 {[%clk 0:03:00.8]}
2... e6 {[%clk 0:02:49]} 3. Bf4 {[%clk 0:03:00.3]} 3... Bb4+ {[%clk 0:02:39.9]}
4. Nd2 {[%clk 0:02:59.8]} 4... d5 {[%clk 0:02:35.8]} 5. Nf3 {[%clk 0:02:55.7]}
5... O-O {[%clk 0:02:35]} 6. e3 {[%clk 0:02:55.7]} 6... c5 {[%clk 0:02:16.5]} 7.
dxc5 {[%clk 0:02:55]} 7... Bxc5 {[%clk 0:02:15.9]} 8. Rc1 {[%clk 0:02:55.4]}
8... Be7 {[%clk 0:02:13.5]} 9. Bd3 {[%clk 0:02:53.4]} 9... Nc6 {[%clk
0:02:13.1]} 10. O-O {[%clk 0:02:53.6]} 10... h6 {[%clk 0:02:06.8]} 11. a3 {[%clk
0:02:50.5]} 11... Nh5 {[%clk 0:01:50.9]} 12. cxd5 {[%clk 0:02:43.8]} 12... Nxf4
{[%clk 0:01:49.3]} 13. exf4 {[%clk 0:02:42.8]} 13... exd5 {[%clk 0:01:49]} 14.
Ne5 {[%clk 0:02:38]} 14... Bf6 {[%clk 0:01:45]} 15. Ndf3 {[%clk 0:02:37.9]}
15... Be6 {[%clk 0:01:36.8]} 16. Bb1 {[%clk 0:02:32.7]} 16... Bxe5 {[%clk
0:01:05.2]} 17. fxe5 {[%clk 0:02:26.3]} 17... Rc8 {[%clk 0:00:57.5]} 18. Re1
{[%clk 0:02:13.8]} 18... Re8 {[%clk 0:00:52.1]} 19. h3 {[%clk 0:02:09]} 19...
Qb6 {[%clk 0:00:47.6]} 20. Qd2 {[%clk 0:01:51]} 20... Ne7 {[%clk 0:00:42.7]} 21.
Nd4 {[%clk 0:01:45.4]} 21... Red8 {[%clk 0:00:22.9]} 22. Kh2 {[%clk 0:01:41.3]}
22... Rc4 {[%clk 0:00:17.2]} 23. Rcd1 {[%clk 0:01:40.6]} 23... Nc6 {[%clk
0:00:13.3]} 24. Nf3 {[%clk 0:01:37.9]} 24... Qc7 {[%clk 0:00:10.2]} 25. Bd3
{[%clk 0:01:36.8]} 25... Re4 {[%clk 0:00:07.1]} 26. Rc1 {[%clk 0:01:20.2]} 26...
Rxe1 {[%clk 0:00:06.4]} 27. Qxe1 {[%clk 0:01:21.1]} 27... Qb6 {[%clk 0:00:05.9]}
28. Qd2 {[%clk 0:01:18.4]} 28... Rc8 {[%clk 0:00:03.2]} 29. b4 {[%clk
0:01:17.3]} 29... Qd8 {[%clk 0:00:03.5]} 30. Qe3 {[%clk 0:01:07.7]} 30... a6
{[%clk 0:00:02.3]} 31. Rc5 {[%clk 0:01:03.6]} 31... Ne7 {[%clk 0:00:02.6]} 32.
Qc1 {[%clk 0:00:58.4]} 32... Rxc5 {[%clk 0:00:02.6]} 33. Qxc5 {[%clk 0:00:59.3]}
33... Nc6 {[%clk 0:00:03.2]} 34. Bxa6 {[%clk 0:00:50.5]} 34... Qb8 {[%clk
0:00:02.9]} 35. g3 {[%clk 0:00:32.5]} 35... Nxe5 {[%clk 0:00:02.5]} 36. Nxe5
{[%clk 0:00:32.4]} 36... Qxe5 {[%clk 0:00:03.4]} 37. Bxb7 {[%clk 0:00:32.1]}
37... Qb2 {[%clk 0:00:03.8]} 38. b5 {[%clk 0:00:20.4]} 38... d4 {[%clk
0:00:02.8]} 39. b6 {[%clk 0:00:20.7]} 39... Qxf2+ {[%clk 0:00:02.6]} 40. Bg2
{[%clk 0:00:21.4]} 40... Qb2 {[%clk 0:00:01.7]} 41. Qb4 {[%clk 0:00:18.9]} 1-0

[Event "Late-Titled-Tuesday-Blitz-October-10-2023"]
[Site "Chess.com"]
[Date "2023.10.10"]
[Round "10"]
[White "rychessmaster1"]
[Black "ural58"]
[Result "1-0"]
[WhiteElo "2692"]
[BlackElo "2521"]
[TimeControl "180+1"]
[EndTime "15:50:40 PDT"]
[Termination "rychessmaster1 won by checkmate"]

1. d4 {[%clk 0:03:00.9]} 1... d5 {[%clk 0:02:54.6]} 2. Nc3 {[%clk 0:03:00.6]}
2... Nf6 {[%clk 0:02:53.6]} 3. Bf4 {[%clk 0:03:00.8]} 3... a6 {[%clk 0:02:52.9]}
4. e3 {[%clk 0:03:00.4]} 4... Nbd7 {[%clk 0:02:49.3]} 5. Nf3 {[%clk 0:02:57.7]}
5... c5 {[%clk 0:02:47.7]} 6. dxc5 {[%clk 0:02:38.5]} 6... Nxc5 {[%clk
0:02:46.8]} 7. Be2 {[%clk 0:02:38.9]} 7... b5 {[%clk 0:02:37.2]} 8. O-O {[%clk
0:02:36.7]} 8... b4 {[%clk 0:02:34.9]} 9. Nb1 {[%clk 0:02:36.9]} 9... Bb7 {[%clk
0:02:34.4]} 10. c3 {[%clk 0:02:31.1]} 10... Qb6 {[%clk 0:01:51.4]} 11. Qd4
{[%clk 0:02:18]} 11... Na4 {[%clk 0:01:32.7]} 12. Qxb6 {[%clk 0:01:58.3]} 12...
Nxb6 {[%clk 0:01:32.9]} 13. cxb4 {[%clk 0:01:58.9]} 13... e6 {[%clk 0:01:31.1]}
14. b5 {[%clk 0:01:57.3]} 14... Be7 {[%clk 0:00:57.4]} 15. Nc3 {[%clk
0:01:48.6]} 15... O-O {[%clk 0:00:56.4]} 16. Rfc1 {[%clk 0:01:45.1]} 16... h6
{[%clk 0:00:55.2]} 17. a4 {[%clk 0:01:32]} 17... axb5 {[%clk 0:00:52.4]} 18.
Bxb5 {[%clk 0:01:31.4]} 18... Bb4 {[%clk 0:00:44.6]} 19. Ne5 {[%clk 0:01:08.7]}
19... Rfc8 {[%clk 0:00:40.9]} 20. Na2 {[%clk 0:01:03.9]} 20... Bd6 {[%clk
0:00:24.5]} 21. Rxc8+ {[%clk 0:00:59.9]} 21... Rxc8 {[%clk 0:00:23.7]} 22. a5
{[%clk 0:00:56]} 22... Nc4 {[%clk 0:00:18.6]} 23. Nxc4 {[%clk 0:00:32.5]} 23...
Bxf4 {[%clk 0:00:18.4]} 24. exf4 {[%clk 0:00:33.1]} 24... dxc4 {[%clk
0:00:18.8]} 25. a6 {[%clk 0:00:29.8]} 25... Bd5 {[%clk 0:00:17.2]} 26. Nb4
{[%clk 0:00:29]} 26... Ba8 {[%clk 0:00:14.1]} 27. a7 {[%clk 0:00:27.1]} 27...
Kf8 {[%clk 0:00:13.4]} 28. Bc6 {[%clk 0:00:24.5]} 28... Ke7 {[%clk 0:00:11.1]}
29. f3 {[%clk 0:00:19.1]} 29... Nd7 {[%clk 0:00:10.1]} 30. Kf2 {[%clk
0:00:15.7]} 30... Nc5 {[%clk 0:00:09]} 31. Bxa8 {[%clk 0:00:13.7]} 31... Rxa8
{[%clk 0:00:08.8]} 32. Ke3 {[%clk 0:00:14.4]} 32... Kd6 {[%clk 0:00:08.8]} 33.
Ra3 {[%clk 0:00:11.4]} 33... Kc7 {[%clk 0:00:07.4]} 34. Kd4 {[%clk 0:00:12]}
34... Kb6 {[%clk 0:00:04]} 35. Kxc4 {[%clk 0:00:12.5]} 35... Nd7 {[%clk
0:00:02.8]} 36. Ra6+ {[%clk 0:00:12.6]} 36... Kb7 {[%clk 0:00:03.2]} 37. Rd6
{[%clk 0:00:12.7]} 37... Nb6+ {[%clk 0:00:03.1]} 38. Kb5 {[%clk 0:00:13.1]}
38... Nc8 {[%clk 0:00:01.1]} 39. Rd7# {[%clk 0:00:13.7]} 1-0

[Event "Late-Titled-Tuesday-Blitz-October-10-2023"]
[Site "Chess.com"]
[Date "2023.10.10"]
[Round "10"]
[White "Horokoskii"]
[Black "FM_Kappeler"]
[Result "0-1"]
[WhiteElo "2113"]
[BlackElo "2309"]
[TimeControl "180+1"]
[EndTime "15:50:41 PDT"]
[Termination "FM_Kappeler won by resignation"]

1. c4 {[%clk 0:03:00.9]} 1... e6 {[%clk 0:02:59.7]} 2. Nc3 {[%clk 0:02:59.3]}
2... Nf6 {[%clk 0:02:59.2]} 3. e4 {[%clk 0:02:59.2]} 3... c5 {[%clk 0:02:56.1]}
4. Nf3 {[%clk 0:02:58.3]} 4... Nc6 {[%clk 0:02:54.2]} 5. d4 {[%clk 0:02:55.7]}
5... cxd4 {[%clk 0:02:53.9]} 6. Nxd4 {[%clk 0:02:55.9]} 6... Bb4 {[%clk
0:02:53.8]} 7. f3 {[%clk 0:02:54]} 7... d5 {[%clk 0:02:52.3]} 8. cxd5 {[%clk
0:02:51.8]} 8... exd5 {[%clk 0:02:51.7]} 9. Bb5 {[%clk 0:02:42.6]} 9... O-O
{[%clk 0:02:47]} 10. Nxc6 {[%clk 0:02:40.9]} 10... bxc6 {[%clk 0:02:45.3]} 11.
Bxc6 {[%clk 0:02:40]} 11... Rb8 {[%clk 0:02:10.3]} 12. Be3 {[%clk 0:02:29.1]}
12... Ba6 {[%clk 0:01:54]} 13. Kf2 {[%clk 0:02:19.3]} 13... Bxc3 {[%clk
0:01:45.1]} 14. bxc3 {[%clk 0:02:20.2]} 14... Rb2+ {[%clk 0:01:21.1]} 15. Kg1
{[%clk 0:02:16.4]} 15... Re2 {[%clk 0:01:05.9]} 16. Bd4 {[%clk 0:02:09.1]} 16...
dxe4 {[%clk 0:01:04.4]} 17. fxe4 {[%clk 0:02:09.1]} 17... Nh5 {[%clk 0:00:57]}
18. h3 {[%clk 0:01:39.9]} 18... Qd6 {[%clk 0:00:44.6]} 19. Bd5 {[%clk
0:01:33.9]} 19... Rd8 {[%clk 0:00:40.2]} 20. c4 {[%clk 0:01:30.6]} 20... Nf4
{[%clk 0:00:28.5]} 21. Bf2 {[%clk 0:01:28.1]} 21... Qg6 {[%clk 0:00:24.4]} 22.
Rh2 {[%clk 0:01:27]} 22... Bxc4 {[%clk 0:00:20.3]} 23. Bxf7+ {[%clk 0:01:25]}
23... Kxf7 {[%clk 0:00:18.7]} 24. Qxd8 {[%clk 0:01:23.7]} 24... Rxe4 {[%clk
0:00:12.9]} 25. Qc7+ {[%clk 0:01:21]} 25... Ke8 {[%clk 0:00:10.1]} 26. Rd1
{[%clk 0:01:14.5]} 26... Qf6 {[%clk 0:00:08.1]} 27. Qb8+ {[%clk 0:00:50.3]}
27... Kf7 {[%clk 0:00:07.5]} 28. Rd7+ {[%clk 0:00:47.5]} 28... Kg6 {[%clk
0:00:07.6]} 29. Rd6 {[%clk 0:00:41.8]} 29... Be6 {[%clk 0:00:07.5]} 30. Qb1
{[%clk 0:00:36.1]} 30... Qf5 {[%clk 0:00:06.6]} 31. Bg3 {[%clk 0:00:28.2]} 31...
Ne2+ {[%clk 0:00:05.7]} 32. Kh1 {[%clk 0:00:24.4]} 32... Nxg3+ {[%clk
0:00:05.6]} 33. Kg1 {[%clk 0:00:24.9]} 33... Ne2+ {[%clk 0:00:06.1]} 34. Kh1
{[%clk 0:00:25.3]} 34... Ng3+ {[%clk 0:00:06.2]} 35. Kg1 {[%clk 0:00:25.7]}
35... Qe5 {[%clk 0:00:06.3]} 36. Rd1 {[%clk 0:00:20.5]} 36... Bf5 {[%clk
0:00:02.6]} 37. h4 {[%clk 0:00:18.6]} 37... Qc5+ {[%clk 0:00:03]} 0-1

[Event "Late-Titled-Tuesday-Blitz-October-10-2023"]
[Site "Chess.com"]
[Date "2023.10.10"]
[Round "10"]
[White "NFChess13"]
[Black "dretch"]
[Result "1-0"]
[WhiteElo "2671"]
[BlackElo "2844"]
[TimeControl "180+1"]
[EndTime "15:50:43 PDT"]
[Termination "NFChess13 won on time"]

1. d4 {[%clk 0:03:00.1]} 1... d5 {[%clk 0:02:59.4]} 2. Nc3 {[%clk 0:03:01]} 2...
e6 {[%clk 0:02:56.7]} 3. Bf4 {[%clk 0:03:00.2]} 3... Bb4 {[%clk 0:02:52.6]} 4.
Qd3 {[%clk 0:03:00.1]} 4... Nf6 {[%clk 0:02:47.7]} 5. a3 {[%clk 0:02:59.5]} 5...
Ba5 {[%clk 0:02:45.7]} 6. b4 {[%clk 0:02:59.7]} 6... Bb6 {[%clk 0:02:45.8]} 7.
g4 {[%clk 0:02:52.1]} 7... a5 {[%clk 0:02:40.1]} 8. b5 {[%clk 0:02:50.9]} 8...
Nxg4 {[%clk 0:02:31.3]} 9. Nf3 {[%clk 0:02:48.7]} 9... Qf6 {[%clk 0:02:12.9]}
10. Bg5 {[%clk 0:02:41.8]} 10... Qg6 {[%clk 0:02:09.9]} 11. Na4 {[%clk
0:02:32.2]} 11... Nd7 {[%clk 0:02:04]} 12. Rg1 {[%clk 0:02:29.7]} 12... Qxd3
{[%clk 0:01:59]} 13. cxd3 {[%clk 0:02:30.6]} 13... Ngf6 {[%clk 0:01:54.8]} 14.
Rc1 {[%clk 0:02:27.6]} 14... h6 {[%clk 0:01:30.6]} 15. Bf4 {[%clk 0:02:26.4]}
15... g5 {[%clk 0:01:19]} 16. Nxb6 {[%clk 0:02:19.3]} 16... cxb6 {[%clk
0:01:10.5]} 17. Bd6 {[%clk 0:02:17.8]} 17... Kd8 {[%clk 0:01:04.7]} 18. Ne5
{[%clk 0:02:15.4]} 18... Rh7 {[%clk 0:01:03.4]} 19. a4 {[%clk 0:01:59.3]} 19...
Ne8 {[%clk 0:01:00.2]} 20. Ba3 {[%clk 0:01:56.2]} 20... f6 {[%clk 0:00:53]} 21.
Nf3 {[%clk 0:01:50.6]} 21... Rf7 {[%clk 0:00:45.6]} 22. e4 {[%clk 0:01:50]}
22... Nf8 {[%clk 0:00:43.6]} 23. h4 {[%clk 0:01:22.7]} 23... Bd7 {[%clk
0:00:43.4]} 24. hxg5 {[%clk 0:01:21.5]} 24... hxg5 {[%clk 0:00:08.7]} 25. e5
{[%clk 0:01:21.4]} 25... Rc8 {[%clk 0:00:09]} 26. Rxc8+ {[%clk 0:01:19.2]} 26...
Bxc8 {[%clk 0:00:09.4]} 27. exf6 {[%clk 0:01:20.1]} 27... Rxf6 {[%clk
0:00:09.1]} 28. Ne5 {[%clk 0:01:16.2]} 28... Rf5 {[%clk 0:00:03.7]} 29. Bh3
{[%clk 0:01:15.6]} 29... Rf4 {[%clk 0:00:02.5]} 30. Rxg5 {[%clk 0:01:13]} 30...
Nd7 {[%clk 0:00:03.1]} 31. Rg4 {[%clk 0:00:56.5]} 31... Nxe5 {[%clk 0:00:02.7]}
32. dxe5 {[%clk 0:00:55.3]} 32... Rf3 {[%clk 0:00:03.3]} 33. Rg3 {[%clk
0:00:52.5]} 33... Rf4 {[%clk 0:00:02.5]} 34. Rg4 {[%clk 0:00:51.6]} 34... Rf3
{[%clk 0:00:02.9]} 35. Bf1 {[%clk 0:00:52.3]} 35... Bd7 {[%clk 0:00:02.7]} 36.
Be2 {[%clk 0:00:51]} 36... Rf7 {[%clk 0:00:02.8]} 37. f4 {[%clk 0:00:50.9]}
37... Ng7 {[%clk 0:00:03]} 38. Rh4 {[%clk 0:00:49.5]} 38... Be8 {[%clk
0:00:02.6]} 39. Kd2 {[%clk 0:00:43.6]} 39... Kd7 {[%clk 0:00:02.6]} 40. Bb2
{[%clk 0:00:38.1]} 40... Nf5 {[%clk 0:00:02.9]} 41. Rh8 {[%clk 0:00:37.5]} 41...
Rg7 {[%clk 0:00:03.2]} 42. Rh2 {[%clk 0:00:33.4]} 42... Bf7 {[%clk 0:00:02.5]}
43. Bf3 {[%clk 0:00:32.8]} 43... Rg3 {[%clk 0:00:02.2]} 44. Be2 {[%clk
0:00:33.2]} 44... Ke7 {[%clk 0:00:02]} 45. Ke1 {[%clk 0:00:30.5]} 45... Bg6
{[%clk 0:00:01.4]} 46. Kf2 {[%clk 0:00:30.6]} 1-0

[Event "Late-Titled-Tuesday-Blitz-October-10-2023"]
[Site "Chess.com"]
[Date "2023.10.10"]
[Round "10"]
[White "maximnovik"]
[Black "cassoulet"]
[Result "1-0"]
[WhiteElo "2512"]
[BlackElo "2747"]
[TimeControl "180+1"]
[EndTime "15:50:43 PDT"]
[Termination "maximnovik won by resignation"]

1. e4 {[%clk 0:03:00.9]} 1... c5 {[%clk 0:02:58.1]} 2. Nf3 {[%clk 0:03:00.8]}
2... Nc6 {[%clk 0:02:56.8]} 3. Bb5 {[%clk 0:03:00.3]} 3... Nf6 {[%clk
0:02:54.3]} 4. Bxc6 {[%clk 0:02:56.2]} 4... dxc6 {[%clk 0:02:53.7]} 5. d3 {[%clk
0:02:56.3]} 5... Bg4 {[%clk 0:02:52.7]} 6. O-O {[%clk 0:02:53.7]} 6... Nd7
{[%clk 0:02:52.4]} 7. Nbd2 {[%clk 0:02:52.1]} 7... e5 {[%clk 0:02:51.9]} 8. h3
{[%clk 0:02:50.9]} 8... Bh5 {[%clk 0:02:51.6]} 9. Nc4 {[%clk 0:02:47.5]} 9... f6
{[%clk 0:02:50.8]} 10. a4 {[%clk 0:02:47.3]} 10... b6 {[%clk 0:02:49.1]} 11. b3
{[%clk 0:02:40.3]} 11... Be7 {[%clk 0:02:49.3]} 12. Ne3 {[%clk 0:02:33.6]} 12...
O-O {[%clk 0:02:46.9]} 13. g4 {[%clk 0:02:33.6]} 13... Bf7 {[%clk 0:02:42.3]}
14. Nh4 {[%clk 0:02:33.8]} 14... Re8 {[%clk 0:02:40.7]} 15. Nhf5 {[%clk
0:02:31.8]} 15... Nf8 {[%clk 0:02:40.6]} 16. f4 {[%clk 0:02:30.9]} 16... exf4
{[%clk 0:02:39.6]} 17. Rxf4 {[%clk 0:02:31]} 17... Ng6 {[%clk 0:02:38.3]} 18.
Rf2 {[%clk 0:02:28.9]} 18... Bd6 {[%clk 0:02:34.7]} 19. Bb2 {[%clk 0:02:26.3]}
19... Be5 {[%clk 0:02:22.4]} 20. Bxe5 {[%clk 0:02:22.5]} 20... Rxe5 {[%clk
0:02:21.1]} 21. Qf3 {[%clk 0:02:14.4]} 21... Qc7 {[%clk 0:02:20.6]} 22. Raf1
{[%clk 0:02:13.3]} 22... Rae8 {[%clk 0:02:19.8]} 23. h4 {[%clk 0:02:06.7]} 23...
Nf8 {[%clk 0:02:17.9]} 24. Nxg7 {[%clk 0:01:59.1]} 24... Kxg7 {[%clk 0:01:58.4]}
25. Qxf6+ {[%clk 0:01:58.6]} 25... Kg8 {[%clk 0:01:58.7]} 26. Qxf7+ {[%clk
0:01:58.2]} 26... Qxf7 {[%clk 0:01:59.2]} 27. Rxf7 {[%clk 0:01:57.8]} 27... R5e7
{[%clk 0:01:59.5]} 28. Rxe7 {[%clk 0:01:55.8]} 28... Rxe7 {[%clk 0:02:00.4]} 29.
Kg2 {[%clk 0:01:55.5]} 29... Ne6 {[%clk 0:01:57.4]} 30. Kg3 {[%clk 0:01:55.6]}
30... Rd7 {[%clk 0:01:55.2]} 31. g5 {[%clk 0:01:49]} 31... Nd4 {[%clk
0:01:54.6]} 32. Kg4 {[%clk 0:01:47.7]} 32... b5 {[%clk 0:01:52.7]} 33. Rf2
{[%clk 0:01:45.1]} 33... a5 {[%clk 0:01:50.1]} 34. h5 {[%clk 0:01:44.1]} 34...
c4 {[%clk 0:01:37.1]} 35. dxc4 {[%clk 0:01:38.8]} 35... bxa4 {[%clk 0:01:36.1]}
36. bxa4 {[%clk 0:01:38.3]} 36... Re7 {[%clk 0:01:36.4]} 37. Kf4 {[%clk
0:01:24.2]} 37... c5 {[%clk 0:01:24.9]} 38. Nd5 {[%clk 0:01:11.7]} 38... Rf7+
{[%clk 0:01:19.9]} 39. Nf6+ {[%clk 0:01:05.1]} 39... Kg7 {[%clk 0:01:19.5]} 40.
e5 {[%clk 0:01:04.7]} 40... Ne6+ {[%clk 0:01:17.8]} 41. Kg4 {[%clk 0:01:02.4]}
41... Re7 {[%clk 0:01:13.1]} 42. h6+ {[%clk 0:00:59.2]} 42... Kg6 {[%clk
0:01:10.4]} 43. Nd5 {[%clk 0:00:58.5]} 43... Rf7 {[%clk 0:01:10.6]} 44. Rf6+
{[%clk 0:00:54.8]} 44... Rxf6 {[%clk 0:01:10.1]} 45. gxf6 {[%clk 0:00:55]} 45...
Kxh6 {[%clk 0:01:08.7]} 46. Nf4 {[%clk 0:00:49]} 46... Nd4 {[%clk 0:01:06.5]}
47. c3 {[%clk 0:00:46]} 47... Nc6 {[%clk 0:01:05.4]} 48. Kf5 {[%clk 0:00:45.8]}
48... Nd8 {[%clk 0:00:54.1]} 49. e6 {[%clk 0:00:42.7]} 49... Nf7 {[%clk
0:00:54.2]} 50. Nd5 {[%clk 0:00:38]} 50... Nd6+ {[%clk 0:00:54]} 51. Kf4 {[%clk
0:00:38]} 51... Kg6 {[%clk 0:00:53.6]} 52. e7 {[%clk 0:00:35.1]} 52... Kf7
{[%clk 0:00:52.1]} 53. Nc7 {[%clk 0:00:31.8]} 53... h5 {[%clk 0:00:46.1]} 54.
Kg5 {[%clk 0:00:31.1]} 54... h4 {[%clk 0:00:41.2]} 55. Kxh4 {[%clk 0:00:30.7]}
55... Kxf6 {[%clk 0:00:39.3]} 56. e8=Q {[%clk 0:00:29.2]} 56... Nxe8 {[%clk
0:00:40]} 57. Nxe8+ {[%clk 0:00:29.4]} 57... Kf5 {[%clk 0:00:40.5]} 58. Nd6+
{[%clk 0:00:28.4]} 58... Kf4 {[%clk 0:00:40.8]} 59. Nb7 {[%clk 0:00:27.8]} 59...
Ke3 {[%clk 0:00:40.5]} 60. Nxc5 {[%clk 0:00:27.6]} 60... Kd2 {[%clk 0:00:41.1]}
61. Ne4+ {[%clk 0:00:26.4]} 61... Kd3 {[%clk 0:00:41.2]} 62. c5 {[%clk
0:00:26.6]} 1-0